bitfinex-derivatives/quotes_BTCF0:USTF0_20240907
["timestamp","ask_amount","ask_price","bid_price","bid_amount"]
[1725670227035,0.093441,54102.0,54100.0,0.16707503]
[1725670227333,0.093441,54102.0,54101.0,0.092442]
[1725670228228,0.11078494,54102.0,54101.0,0.092442]
[1725670228624,0.10978494,54102.0,54101.0,0.092442]
[1725670228829,0.11078494,54102.0,54101.0,0.093442]
[1725670230430,0.11078494,54102.0,54101.0,0.12098342]
[1725670230431,0.12812888,54102.0,54101.0,0.12098342]
[1725670231228,0.22812888,54102.0,54101.0,0.05621167]
[1725670231428,0.22812888,54102.0,54094.0,0.09211067]
[1725670231429,0.092449,54097.0,54095.0,0.05524183]
[1725670231644,0.55452,54101.0,54091.0,0.05524183]
[1725670231645,0.092458,54092.0,54091.0,0.05524183]
[1725670231836,0.22714588,54092.0,54090.0,0.05524183]
[1725670232142,0.12714688,54091.0,54090.0,0.05524183]
[1725670232436,0.12714688,54091.0,54090.0,0.14770283]
[1725670232437,0.10980294,54091.0,54090.0,0.14770283]
[1725670232640,0.10880294,54091.0,54090.0,0.14770283]
[1725670233532,0.12163303,54091.0,54090.0,0.14770283]
[1725670233934,0.12163303,54091.0,54090.0,0.092461]
[1725670236134,0.12163303,54091.0,54087.0,0.092466]
[1725670236336,0.092464,54089.0,54084.0,0.1577126]
[1725670237043,0.092464,54089.0,54086.0,0.092467]
[1725670238151,0.01283009,54091.0,54084.0,0.046]
[1725670238342,0.192468,54086.0,54082.0,0.092474]
[1725670238645,0.1,54086.0,54084.0,0.003]
[1725670239343,0.092471,54085.0,54084.0,0.003]
[1725670239747,0.187471,54085.0,54084.0,0.003]
[1725670239944,0.187471,54085.0,54077.0,0.01190199]
[1725670239945,0.089475,54082.0,54077.0,0.01190199]
[1725670240139,0.189475,54082.0,54076.0,0.142084]
[1725670240849,0.01183009,54091.0,54080.0,0.1]
[1725670241046,0.17411245,54090.0,54083.0,0.1]
[1725670241237,0.05676266,54089.0,54083.0,0.1]
[1725670241642,0.05676266,54089.0,54084.0,0.003]
[1725670242347,0.092471,54084.0,54083.0,0.1]
[1725670242551,0.14923366,54084.0,54083.0,0.1]
[1725670242749,0.05676266,54084.0,54083.0,0.1]
[1725670242943,0.004,54089.0,54083.0,0.1]
[1725670243141,0.0567597,54088.0,54086.0,0.092468]
[1725670243342,0.0567597,54087.0,54086.0,0.092468]
[1725670243745,0.0567597,54087.0,54086.0,0.192468]
[1725670244048,0.005,54089.0,54088.0,0.092465]
[1725670244244,0.06175551,54089.0,54088.0,0.092465]
[1725670244452,0.005,54089.0,54088.0,0.092465]
[1725670244751,0.092455,54094.0,54089.0,0.092462]
[1725670244950,0.05675439,54093.0,54092.0,0.1]
[1725670245948,0.14921039,54093.0,54092.0,0.1]
[1725670246149,0.05675439,54093.0,54088.0,0.001]
[1725670246451,0.05675439,54092.0,54088.0,0.001]
[1725670246657,0.0471,54101.0,54091.0,0.1]
[1725670246842,0.056751,54100.0,54091.0,0.1]
[1725670247043,0.092449,54098.0,54091.0,0.1]
[1725670247645,0.092449,54098.0,54091.0,0.192459]
[1725670248045,0.006,54093.0,54092.0,0.001]
[1725670248244,0.25521065,54093.0,54092.0,0.001]
[1725670248955,0.09146,54091.0,54084.0,0.10461115]
[1725670249259,0.09146,54091.0,54085.0,0.19247]
[1725670249950,0.1,54093.0,54085.0,0.19247]
[1725670249951,0.092462,54090.0,54085.0,0.19247]
[1725670250252,0.092463,54089.0,54085.0,0.09247]
[1725670250649,0.091463,54089.0,54085.0,0.09247]
[1725670251549,0.03469786,54088.0,54085.0,0.09347]
[1725670251754,0.01734893,54087.0,54085.0,0.09347]
[1725670251961,0.01734893,54086.0,54085.0,0.09347]
[1725670252151,0.01734893,54088.0,54085.0,0.09347]
[1725670252353,0.01734893,54087.0,54085.0,0.09347]
[1725670252554,0.01734893,54086.0,54085.0,0.001]
[1725670252747,0.01734893,54088.0,54085.0,0.001]
[1725670252945,0.01734893,54087.0,54085.0,0.001]
[1725670253143,0.006,54089.0,54085.0,0.001]
[1725670253144,0.01734893,54086.0,54085.0,0.001]
[1725670254955,0.20981693,54086.0,54083.0,0.092473]
[1725670255158,0.198468,54086.0,54085.0,0.001]
[1725670255347,0.21581715,54086.0,54085.0,0.00080735]
[1725670255855,0.27258043,54086.0,54085.0,0.00080735]
[1725670256451,0.28452779,54086.0,54085.0,0.00080735]
[1725670257656,0.28252779,54086.0,54081.0,0.137675]
[1725670257860,0.05676328,54085.0,54081.0,0.137675]
[1725670258051,0.07411243,54084.0,54081.0,0.137675]
[1725670258256,0.05676328,54083.0,54081.0,0.137675]
[1725670258459,0.20841536,54086.0,54081.0,0.137675]
[1725670258460,0.05576328,54082.0,54081.0,0.137675]
[1725670258664,0.09247,54085.0,54081.0,0.137675]
[1725670258954,0.09247,54085.0,54082.0,0.092474]
[1725670259359,0.002,54084.0,54082.0,0.092474]
[1725670260755,0.09247,54085.0,54082.0,0.092474]
[1725670261060,0.09547,54085.0,54082.0,0.092474]
[1725670261360,0.09547,54085.0,54079.0,0.09248]
[1725670261554,0.09247,54085.0,54079.0,0.09248]
[1725670261762,0.003,54084.0,54079.0,0.09248]
[1725670261962,0.095472,54084.0,54079.0,0.09248]
[1725670262362,0.092473,54083.0,54079.0,0.09248]
[1725670262555,0.092475,54082.0,54079.0,0.09248]
[1725670263463,0.05676393,54081.0,54079.0,0.09248]
[1725670263661,0.05676393,54080.0,54079.0,0.09248]
[1725670264059,0.092475,54082.0,54079.0,0.09248]
[1725670264261,0.092475,54082.0,54080.0,0.07378359]
[1725670265063,0.092475,54082.0,54080.0,0.16626159]
[1725670265571,0.092477,54081.0,54080.0,0.07378359]
[1725670265966,0.092477,54081.0,54079.0,0.07378359]
[1725670267772,0.093477,54081.0,54079.0,0.07378359]
[1725670268364,0.092477,54081.0,54079.0,0.07378359]
[1725670269661,0.092477,54081.0,54079.0,0.16626359]
[1725670270067,0.092465,54088.0,54084.0,0.09247]
[1725670270266,0.092465,54088.0,54086.0,0.05531407]
[1725670270267,0.01734974,54087.0,54086.0,0.05531407]
[1725670270463,0.10981574,54087.0,54086.0,0.05531407]
[1725670270668,0.092466,54087.0,54086.0,0.05531407]
[1725670271376,0.10981513,54087.0,54086.0,0.05531407]
[1725670271970,0.01734913,54087.0,54086.0,0.14778207]
[1725670272176,0.02534913,54087.0,54086.0,0.093468]
[1725670272376,0.02534913,54087.0,54086.0,0.1487787]
[1725670272776,0.008,54087.0,54086.0,0.1487787]
[1725670274383,0.008,54087.0,54086.0,0.093468]
[1725670275782,0.008,54087.0,54086.0,0.193468]
[1725670276175,0.008,54087.0,54086.0,0.26719416]
[1725670277681,0.008,54087.0,54086.0,0.193468]
[1725670278488,0.008,54087.0,54086.0,0.093468]
[1725670279181,0.06475668,54087.0,54086.0,0.093468]
[1725670280884,0.09945256,54087.0,54086.0,0.07276861]
[1725670281280,0.08210462,54087.0,54086.0,0.07276861]
[1725670283089,0.09945289,54087.0,54086.0,0.07276861]
[1725670285085,0.09945271,54087.0,54086.0,0.07276861]
[1725670285383,0.08210462,54087.0,54086.0,0.07276861]
[1725670285778,0.09945288,54087.0,54086.0,0.07276861]
[1725670286186,0.0426962,54087.0,54086.0,0.07276861]
[1725670286385,0.02534794,54087.0,54086.0,0.07276861]
[1725670286691,0.04269621,54087.0,54086.0,0.07276861]
[1725670287883,0.02534794,54087.0,54086.0,0.07276861]
[1725670288083,0.008,54087.0,54086.0,0.07276861]
[1725670293890,0.008,54087.0,54086.0,0.17276861]
[1725670294096,0.008,54087.0,54086.0,0.24651556]
[1725670294401,0.008,54087.0,54086.0,0.17276861]
[1725670303107,0.008,54087.0,54086.0,0.5167383]
[1725670303108,0.00421028,54087.0,54086.0,0.5167383]
[1725670303292,0.092452,54096.0,54095.0,0.092451]
[1725670303492,0.092453,54095.0,54094.0,0.07378992]
[1725670303693,0.12714434,54095.0,54094.0,0.07378511]
[1725670303898,0.17106825,54095.0,54094.0,0.07378511]
[1725670304197,0.17106825,54095.0,54091.0,0.0922374]
[1725670304198,0.17106825,54095.0,54093.0,0.16624011]
[1725670304404,0.03369134,54094.0,54093.0,0.16624011]
[1725670306105,0.07762251,54094.0,54093.0,0.14778682]
[1725670307004,0.07662251,54094.0,54093.0,0.14778682]
[1725670307801,0.07662251,54094.0,54093.0,0.14878682]
[1725670309301,0.13337542,54094.0,54093.0,0.093455]
[1725670310999,0.11602975,54094.0,54093.0,0.093455]
[1725670316012,0.05675291,54094.0,54093.0,0.093455]
[1725670316215,0.092452,54096.0,54093.0,0.14878682]
[1725670316407,0.092452,54096.0,54093.0,0.14874862]
[1725670316602,0.1,54095.0,54093.0,0.14874862]
[1725670316816,0.092454,54094.0,54093.0,0.001]
[1725670317016,0.092454,54094.0,54084.0,0.0922374]
[1725670317017,0.57194767,54094.0,54090.0,0.05530082]
[1725670317313,0.092461,54090.0,54084.0,0.05530775]
[1725670317507,0.1,54085.0,54083.0,0.05530775]
[1725670317702,0.10912487,54084.0,54083.0,0.05530775]
[1725670318015,0.12547475,54084.0,54083.0,0.05530775]
[1725670318208,0.20059706,54084.0,54081.0,0.07378511]
[1725670318408,0.01734988,54083.0,54081.0,0.07378511]
[1725670318611,0.01734988,54082.0,54081.0,0.07378511]
[1725670319114,0.20982488,54082.0,54081.0,0.07378511]
[1725670319322,0.09248,54079.0,54078.0,0.05530024]
[1725670319614,0.09248,54079.0,54075.0,0.05530024]
[1725670319615,0.27110242,54079.0,54075.0,0.05530024]
[1725670319917,0.1,54076.0,54075.0,0.05530024]
[1725670320215,0.1347003,54076.0,54075.0,0.05530024]
[1725670320410,0.1327003,54076.0,54075.0,0.05530024]
[1725670321006,1.27010988,54076.0,54072.0,0.05530024]
[1725670321211,0.087494,54071.0,54069.0,0.05530024]
[1725670321411,0.16304988,54070.0,54065.0,0.05530024]
[1725670321613,0.16304988,54070.0,54063.0,0.092507]
[1725670321614,0.01734988,54069.0,54064.0,0.05530024]
[1725670321914,0.1,54067.0,54064.0,0.05530024]
[1725670322114,0.01734988,54066.0,54064.0,0.05530024]
[1725670322312,0.01734988,54066.0,54063.0,0.14780724]
[1725670322518,0.01734988,54066.0,54063.0,0.092507]
[1725670322914,0.01034988,54066.0,54063.0,0.092507]
[1725670323217,0.1,54067.0,54063.0,0.092507]
[1725670323716,0.002,54066.0,54063.0,0.092507]
[1725670324312,0.1,54067.0,54063.0,0.092507]
[1725670324512,0.002,54067.0,54064.0,0.092505]
[1725670326023,0.1,54068.0,54064.0,0.092505]
[1725670326225,0.003,54066.0,54065.0,0.092504]
[1725670326817,0.1,54068.0,54065.0,0.092504]
[1725670327013,0.004,54067.0,54065.0,0.092504]
[1725670328928,0.005,54066.0,54065.0,0.092504]
[1725670329520,0.1,54068.0,54065.0,0.092504]
[1725670329720,0.006,54067.0,54065.0,0.093504]
[1725670330324,0.1,54068.0,54065.0,0.092504]
[1725670330528,0.1,54068.0,54065.0,0.001]
[1725670330725,0.006,54066.0,54065.0,0.001]
[1725670331323,0.098502,54066.0,54065.0,0.001]
[1725670331528,1.253382,54066.0,54065.0,0.001]
[1725670332134,0.092508,54063.0,54057.0,0.092517]
[1725670332334,0.1,54060.0,54057.0,0.092517]
[1725670335225,0.092509,54062.0,54058.0,0.092516]
[1725670336433,0.092509,54062.0,54058.0,0.095516]
[1725670337630,0.0487,54067.0,54059.0,0.1]
[1725670337833,0.09262,54099.0,54064.0,0.092504]
[1725670337834,0.092497,54070.0,54064.0,0.092504]
[1725670338337,0.092497,54070.0,54065.0,0.1]
[1725670338531,0.092497,54070.0,54066.0,0.092502]
[1725670338732,0.10448481,54070.0,54066.0,0.092502]
[1725670339030,0.3265,54072.0,54068.0,0.1]
[1725670339436,0.3265,54072.0,54069.0,0.0464]
[1725670339626,0.006,54070.0,54069.0,0.0464]
[1725670339826,0.006,54070.0,54069.0,0.138897]
[1725670340540,0.006,54070.0,54069.0,1.30601634]
[1725670340739,0.3265,54083.0,54082.0,0.092475]
[1725670340940,0.1,54091.0,54085.0,0.092469]
[1725670341144,0.1,54091.0,54085.0,0.192469]
[1725670341442,0.092461,54090.0,54086.0,0.092468]
[1725670341739,0.1,54091.0,54086.0,0.092468]
[1725670341940,0.01184144,54092.0,54086.0,0.092468]
[1725670342141,0.014,54091.0,54086.0,0.092468]
[1725670342743,0.2851,54093.0,54086.0,0.092468]
[1725670342933,0.014,54091.0,54086.0,0.093468]
[1725670343139,0.10646,54091.0,54086.0,0.001]
[1725670344244,0.09246,54091.0,54084.0,0.09247]
[1725670344543,0.09246,54091.0,54086.0,0.001]
[1725670345255,0.09746,54091.0,54086.0,0.001]
[1725670345442,0.19,54089.0,54086.0,0.001]
[1725670347444,0.05675889,54088.0,54086.0,0.001]
[1725670347743,0.005,54091.0,54086.0,0.001]
[1725670347744,0.0567588,54087.0,54086.0,0.001]
[1725670348435,0.0567588,54087.0,54086.0,0.093468]
[1725670348842,0.0567588,54087.0,54086.0,0.092468]
[1725670349037,0.0667588,54087.0,54086.0,0.093468]
[1725670349547,0.08410692,54087.0,54086.0,0.093468]
[1725670350750,0.0657588,54087.0,54086.0,0.093468]
[1725670351932,0.06575772,54087.0,54086.0,0.093468]
[1725670352133,0.08310598,54087.0,54086.0,0.093468]
[1725670353441,0.11881426,54087.0,54086.0,0.001]
[1725670353843,0.02634826,54087.0,54086.0,0.001]
[1725670354237,0.11881426,54087.0,54086.0,0.001]
[1725670355247,0.13062794,54087.0,54086.0,0.001]
[1725670356651,0.11327968,54087.0,54086.0,0.001]
[1725670363960,0.21327968,54087.0,54086.0,0.001]
[1725670366871,0.76795968,54087.0,54086.0,0.001]
[1725670368472,0.89106116,54087.0,54086.0,0.001]
[1725670368869,0.092487,54075.0,54071.0,0.092493]
[1725670369174,0.1,54072.0,54069.0,0.0459]
[1725670369475,0.05676824,54071.0,54069.0,0.138397]
[1725670370169,0.05176824,54070.0,54069.0,0.138397]
[1725670370363,0.092489,54074.0,54069.0,0.138397]
[1725670370671,0.19,54076.0,54069.0,0.138397]
[1725670370872,0.19,54076.0,54070.0,0.092495]
[1725670371165,0.19,54076.0,54069.0,0.0459]
[1725670371372,0.092489,54074.0,54069.0,0.138396]
[1725670371569,0.001,54071.0,54069.0,0.146396]
[1725670372458,0.001,54071.0,54070.0,0.092495]
[1725670373272,0.191,54076.0,54070.0,0.092495]
[1725670373569,0.20290333,54076.0,54070.0,0.092495]
[1725670373969,0.003,54071.0,54070.0,0.092495]
[1725670374472,0.092496,54070.0,54065.0,0.092504]
[1725670375175,0.05677828,54069.0,54065.0,0.092504]
[1725670375375,0.05677828,54068.0,54065.0,0.092504]
[1725670375580,0.05677828,54067.0,54065.0,0.092504]
[1725670375768,0.092497,54069.0,54065.0,0.092504]
[1725670375969,0.05678056,54068.0,54065.0,0.092504]
[1725670376165,0.05678056,54067.0,54063.0,0.01170119]
[1725670376465,0.05678056,54067.0,54061.0,0.28251]
[1725670376466,0.0925,54068.0,54066.0,0.05530024]
[1725670377277,0.0955,54068.0,54066.0,0.05530024]
[1725670377462,0.0955,54068.0,54065.0,0.05530024]
[1725670378768,0.0955,54068.0,54064.0,0.05530024]
[1725670379065,0.0925,54068.0,54065.0,0.05530024]
[1725670379262,0.0965,54068.0,54065.0,0.05530024]
[1725670379469,0.0965,54068.0,54066.0,0.05530024]
[1725670380070,0.0945,54068.0,54066.0,0.05530024]
[1725670380478,0.0945,54068.0,54065.0,0.05530024]
[1725670380779,0.0925,54068.0,54065.0,0.05530024]
[1725670380969,0.0965,54068.0,54065.0,0.05530024]
[1725670382480,0.0955,54068.0,54066.0,0.05530024]
[1725670383470,0.0955,54068.0,54064.0,0.092505]
[1725670383675,0.0965,54068.0,54064.0,0.092505]
[1725670385971,0.0945,54068.0,54064.0,0.092505]
[1725670386784,0.092501,54067.0,54064.0,0.092505]
[1725670387375,0.002,54068.0,54063.0,0.19]
[1725670387679,0.002,54068.0,54067.0,0.0925]
[1725670388977,0.092496,54070.0,54067.0,0.0925]
[1725670389686,0.01735455,54069.0,54067.0,0.0925]
[1725670389878,0.005,54068.0,54067.0,0.0925]
[1725670390684,0.097496,54070.0,54067.0,0.0925]
[1725670390980,0.01735447,54069.0,54067.0,0.0925]
[1725670391181,0.097496,54070.0,54067.0,0.0925]
[1725670391488,0.01735447,54069.0,54067.0,0.0925]
[1725670391685,0.01735447,54068.0,54067.0,0.0925]
[1725670391881,0.097496,54070.0,54067.0,0.0925]
[1725670392180,0.092496,54070.0,54068.0,0.092498]
[1725670392390,0.01735445,54069.0,54068.0,0.140498]
[1725670393090,0.10985145,54069.0,54068.0,0.140498]
[1725670393980,0.098497,54069.0,54068.0,0.141498]
[1725670394386,0.098497,54069.0,54068.0,0.19679824]
[1725670394887,0.098497,54069.0,54068.0,0.141498]
[1725670395389,0.006,54069.0,54068.0,0.141498]
[1725670395793,0.006,54069.0,54068.0,0.21525984]
[1725670395986,0.006,54069.0,54068.0,0.141498]
[1725670398586,0.06277434,54069.0,54068.0,0.141498]
[1725670402097,0.08012844,54069.0,54068.0,0.141498]
[1725670402391,0.08012844,54069.0,54068.0,0.093498]
[1725670404191,0.092508,54063.0,54051.0,0.092528]
[1725670404398,0.0741286,54062.0,54060.0,0.092511]
[1725670404598,0.0741286,54061.0,54060.0,0.092511]
[1725670405694,0.07413821,54061.0,54060.0,0.092511]
[1725670405901,0.17413821,54061.0,54059.0,0.004]
[1725670406199,0.07413821,54060.0,54051.0,0.01200192]
[1725670406397,0.097,54055.0,54054.0,0.1847604]
[1725670406598,0.11435426,54055.0,54054.0,0.32574707]
[1725670406801,0.11435426,54055.0,54054.0,0.092523]
[1725670407396,0.11435426,54055.0,54053.0,0.0922374]
[1725670407698,0.11435426,54055.0,54050.0,0.092529]
[1725670407699,0.01735876,54054.0,54051.0,0.07393997]
[1725670407888,0.1,54051.0,54049.0,0.07393997]
[1725670408091,0.01735876,54050.0,54047.0,0.07393997]
[1725670408300,0.1,54048.0,54046.0,0.05541597]
[1725670408598,0.01735876,54047.0,54046.0,0.05541597]
[1725670408998,0.1,54048.0,54046.0,0.05541597]
[1725670409187,0.1,54048.0,54044.0,0.05541597]
[1725670409390,0.092532,54049.0,54044.0,0.05541597]
[1725670409391,0.1,54045.0,54044.0,0.05541597]
[1725670409997,0.19,54047.0,54044.0,0.05541597]
[1725670410199,0.19,54047.0,54043.0,0.06756863]
[1725670410997,0.194,54047.0,54043.0,0.06756863]
[1725670411202,0.194,54047.0,54043.0,0.01215266]
[1725670411389,0.194,54047.0,54042.0,0.14795797]
[1725670411897,0.19,54047.0,54042.0,0.14795797]
[1725670412293,0.19,54047.0,54042.0,0.092542]
[1725670413594,0.19,54047.0,54043.0,0.092541]
[1725670415892,0.20221358,54047.0,54043.0,0.092541]
[1725670416304,0.19,54045.0,54043.0,0.092541]
[1725670417603,0.282538,54045.0,54034.0,0.29531597]
[1725670417800,0.282538,54045.0,54034.0,0.30728236]
[1725670418192,0.0946,54044.0,54034.0,0.25186639]
[1725670418394,0.1422,54044.0,54034.0,0.25186639]
[1725670419007,0.19,54041.0,54038.0,0.092549]
[1725670419301,0.19,54041.0,54039.0,0.092548]
[1725670420495,0.19,54041.0,54034.0,0.25286639]
[1725670420496,0.19,54041.0,54040.0,0.092547]
[1725670423298,0.234741,54044.0,54034.0,0.25186639]
[1725670423299,0.424741,54044.0,54041.0,0.092544]
[1725670423497,0.092541,54044.0,54041.0,0.092544]
[1725670424707,0.094541,54044.0,54041.0,0.092544]
[1725670431007,0.092542,54043.0,54041.0,0.092544]
[1725670432410,0.094542,54043.0,54041.0,0.092544]
[1725670432803,0.1,54042.0,54041.0,0.092544]
[1725670433807,0.1,54042.0,54037.0,0.09255]
[1725670434011,0.1,54042.0,54034.0,0.12383997]
[1725670434012,0.1,54038.0,54034.0,0.10531597]
[1725670434216,0.1,54035.0,54032.0,0.07393997]
[1725670434407,0.1,54035.0,54034.0,0.05538153]
[1725670434612,0.1,54035.0,54034.0,0.14793942]
[1725670435007,0.099,54035.0,54034.0,0.14793942]
[1725670435209,0.099,54035.0,54034.0,0.15493942]
[1725670435714,0.099,54035.0,54034.0,0.14793942]
[1725670435915,0.001,54035.0,54034.0,0.15493942]
[1725670436112,0.001,54035.0,54034.0,0.099557]
[1725670436309,0.001,54035.0,54034.0,0.17349697]
[1725670436618,0.002,54035.0,54034.0,0.17449697]
[1725670437421,0.002,54035.0,54034.0,0.100557]
[1725670440614,0.002,54035.0,54034.0,0.17453069]
[1725670441713,0.002,54035.0,54034.0,0.100557]
[1725670442914,0.002,54035.0,54034.0,0.17453177]
[1725670444319,0.002,54035.0,54034.0,0.100557]
[1725670444506,0.002,54035.0,54034.0,0.3338314]
[1725670444709,0.002,54035.0,54034.0,0.33405887]
[1725670445111,0.002,54035.0,54034.0,0.19302225]
[1725670445319,0.002,54035.0,54034.0,0.24159435]
[1725670445822,0.002,54035.0,54034.0,0.33407643]
[1725670446120,0.002,54035.0,54034.0,0.24159435]
[1725670447013,0.002,54035.0,54034.0,0.100557]
[1725670450915,0.094555,54035.0,54034.0,0.008]
[1725670451918,0.094555,54035.0,54034.0,0.100557]
[1725670452309,0.094555,54035.0,54034.0,0.008]
[1725670452511,0.094555,54035.0,54034.0,0.08199541]
[1725670452816,0.094555,54035.0,54034.0,0.008]
[1725670453820,0.093555,54035.0,54034.0,0.001]
[1725670454009,0.093555,54035.0,54032.0,0.07399541]
[1725670454010,0.092559,54034.0,54032.0,0.07399541]
[1725670454211,0.092559,54033.0,54032.0,0.07399541]
[1725670454416,0.1,54034.0,54032.0,0.05549274]
[1725670454621,0.09256,54032.0,54031.0,0.05549274]
[1725670454921,0.092562,54031.0,54030.0,0.05549274]
[1725670455113,0.092562,54031.0,54029.0,0.05549274]
[1725670455114,0.092564,54030.0,54029.0,0.05549274]
[1725670455315,0.1,54030.0,54027.0,0.07399541]
[1725670455516,0.1,54028.0,54027.0,0.07399541]
[1725670456119,0.1,54028.0,54026.0,0.07399541]
[1725670456516,0.191568,54028.0,54026.0,0.07399541]
[1725670457214,0.191568,54028.0,54025.0,0.07399541]
[1725670457413,0.1,54026.0,54025.0,0.07399541]
[1725670457614,0.1,54026.0,54024.0,0.16256841]
[1725670458013,0.1,54026.0,54025.0,0.07399541]
[1725670458215,0.1,54026.0,54024.0,0.16256841]
[1725670459120,0.1,54026.0,54024.0,0.088573]
[1725670459325,0.101,54026.0,54024.0,0.088573]
[1725670460224,0.101,54026.0,54023.0,0.08581075]
[1725670460419,0.101,54026.0,54025.0,0.05543585]
[1725670460620,0.101,54026.0,54023.0,0.08581075]
[1725670460621,0.092572,54025.0,54024.0,0.05543585]
[1725670460816,0.092572,54025.0,54023.0,0.05543585]
[1725670461016,0.092572,54025.0,54021.0,0.0494]
[1725670461017,0.092574,54024.0,54021.0,0.0494]
[1725670461217,0.101,54026.0,54022.0,0.1]
[1725670461416,0.101,54026.0,54025.0,0.14799807]
[1725670461824,0.1,54026.0,54025.0,0.14799807]
[1725670464131,0.1,54026.0,54025.0,0.092572]
[1725670464426,0.101,54026.0,54025.0,0.14799807]
[1725670464625,0.101,54026.0,54025.0,0.092572]
[1725670464821,0.101,54026.0,54025.0,0.14799807]
[1725670466030,0.101,54026.0,54025.0,0.092572]
[1725670467325,0.101,54026.0,54019.0,0.1]
[1725670467326,0.092579,54021.0,54014.0,0.09248941]
[1725670467626,0.1,54015.0,54014.0,0.05541054]
[1725670467937,0.19259,54015.0,54013.0,0.05541054]
[1725670468233,0.19259,54015.0,54012.0,0.05541054]
[1725670468420,0.1,54013.0,54012.0,0.05541054]
[1725670469026,0.1,54013.0,54010.0,0.15230728]
[1725670469425,0.192593,54013.0,54012.0,0.05537358]
[1725670469631,0.092595,54012.0,54010.0,0.01171028]
[1725670469830,0.092595,54012.0,54009.0,0.05537358]
[1725670470027,0.1,54010.0,54009.0,0.0553756]
[1725670470223,0.1,54010.0,54008.0,0.0553756]
[1725670470430,0.192598,54010.0,54007.0,0.0553756]
[1725670470739,0.1,54008.0,54006.0,0.16007762]
[1725670471135,0.1,54008.0,54006.0,0.10470202]
[1725670471327,0.1,54008.0,54004.0,0.0553756]
[1725670471531,0.1,54005.0,54003.0,0.0553756]
[1725670471928,0.1,54005.0,54003.0,0.092609]
[1725670473531,0.101,54005.0,54004.0,0.092608]
[1725670473837,0.001,54005.0,54004.0,0.092608]
[1725670479644,0.192597,54011.0,54009.0,0.092598]
[1725670480341,0.192597,54011.0,54010.0,0.092598]
[1725670483437,0.192597,54011.0,54010.0,0.093598]
[1725670484045,0.192597,54011.0,54010.0,0.001]
[1725670495056,0.0926,54009.0,54006.0,0.05528506]
[1725670495257,0.1,54008.0,54005.0,0.16647435]
[1725670495552,0.1,54008.0,54007.0,0.05546122]
[1725670495949,0.1,54008.0,54005.0,0.16647435]
[1725670496249,0.1,54008.0,54006.0,0.07486835]
[1725670497949,0.1,54008.0,54007.0,0.001]
[1725670498453,0.192602,54008.0,54007.0,0.001]
[1725670498649,0.192602,54008.0,54006.0,0.07386835]
[1725670498956,0.1,54007.0,54006.0,0.001]
[1725670499447,0.099,54007.0,54005.0,0.07386835]
[1725670499644,0.1,54006.0,54004.0,0.07386835]
[1725670500153,0.092608,54004.0,54003.0,0.07386835]
[1725670500359,0.192608,54004.0,54003.0,0.07386835]
[1725670500758,0.192608,54004.0,54002.0,0.07386835]
[1725670501456,0.192608,54004.0,54001.0,0.07386835]
[1725670501457,1.25552,54004.0,54001.0,0.07386835]
[1725670501651,0.092615,54000.0,53999.0,0.05553472]
[1725670501844,0.092617,53999.0,53997.0,0.05553472]
[1725670502050,0.192619,53998.0,53996.0,0.05553472]
[1725670502349,0.1,53997.0,53996.0,0.05553472]
[1725670503252,0.1,53997.0,53994.0,0.092625]
[1725670503857,0.1,53997.0,53994.0,0.14815972]
[1725670504455,0.1,53997.0,53994.0,0.092625]
[1725670504760,0.106,53997.0,53994.0,0.092625]
[1725670504947,0.198621,53997.0,53994.0,0.092625]
[1725670505351,0.197621,53997.0,53994.0,0.092625]
[1725670506050,0.092627,53993.0,53990.0,0.05553472]
[1725670506250,0.192627,53993.0,53990.0,0.14816672]
[1725670506449,0.192627,53993.0,53990.0,0.092632]
[1725670510256,0.1,53993.0,53990.0,0.092632]
[1725670510457,0.3265,54009.0,53992.0,0.1]
[1725670510664,0.1,54007.0,54002.0,0.1]
[1725670510960,0.1,54007.0,53993.0,0.10143472]
[1725670510961,0.092612,54002.0,53996.0,0.192621]
[1725670511143,0.1,54001.0,53994.0,0.0487]
[1725670511659,0.1,54001.0,53997.0,0.092619]
[1725670513062,0.1,54001.0,53998.0,0.092617]
[1725670513655,0.105,54001.0,53998.0,0.092617]
[1725670514156,0.19,54000.0,53998.0,0.092617]
[1725670515166,0.19,54000.0,53985.0,0.19]
[1725670515465,0.19,53996.0,53991.0,0.14093]
[1725670515762,0.02378208,53995.0,53991.0,0.14093]
[1725670515950,0.092627,53993.0,53991.0,0.0483]
[1725670517661,0.093627,53993.0,53991.0,0.0483]
[1725670519359,0.283627,53993.0,53991.0,0.0483]
[1725670519556,0.092629,53992.0,53991.0,0.0483]
[1725670520653,0.19,53993.0,53989.0,0.05553472]
[1725670520862,0.092633,53990.0,53989.0,0.05553472]
[1725670521060,0.092633,53990.0,53988.0,0.05553472]
[1725670521460,0.092633,53990.0,53987.0,0.14817272]
[1725670521760,0.20209482,53993.0,53987.0,0.14817272]
[1725670522454,0.29472282,53993.0,53987.0,0.14817272]
[1725670523054,0.29472282,53993.0,53988.0,0.092636]
[1725670523255,0.09263,53992.0,53988.0,0.14817072]
[1725670523863,0.09263,53992.0,53988.0,0.092636]
[1725670525160,0.09263,53992.0,53988.0,0.14817072]
[1725670525555,0.092623,53996.0,53988.0,0.05553472]
[1725670525763,0.092626,53994.0,53992.0,0.092628]
[1725670526663,0.092627,53993.0,53992.0,0.092628]
[1725670526859,0.092629,53992.0,53988.0,0.092635]
[1725670527064,0.092631,53991.0,53988.0,0.092635]
[1725670528973,0.092625,53995.0,53990.0,0.092632]
[1725670529263,0.092626,53994.0,53991.0,0.09263]
[1725670529763,0.092627,53993.0,53991.0,0.09263]